bitfinex/quotes_SOLUSD_20241205
["timestamp","ask_amount","ask_price","bid_price","bid_amount"]
[1733395406208,6.311,237.68,237.56,0.25098]
[1733395406625,6.3096,237.73,237.56,0.25098]
[1733395406830,6.3096,237.73,237.59,0.25098]
[1733395407029,6.3096,237.73,237.59,0.12549]
[1733395407414,20.0,237.7,237.6,27.977884]
[1733395407816,20.0,237.7,237.61,23.776884]
[1733395408312,20.0,237.7,237.62,0.12549]
[1733395408514,20.0,237.7,237.62,4.32649]
[1733395408705,6.3096,237.73,237.6,1.6384]
[1733395408912,6.3096,237.73,237.61,23.776884]
[1733395409409,6.3096,237.73,237.62,4.57747]
[1733395409628,6.3096,237.73,237.63,27.977884]
[1733395409827,1.5299,237.76,237.65,0.12549]
[1733395410335,20.0,237.74,237.65,0.12549]
[1733395410833,20.0,237.74,237.65,0.25098]
[1733395411022,6.3088,237.77,237.65,4.45198]
[1733395411223,6.3088,237.77,237.67,23.776884]
[1733395411723,6.3088,237.77,237.68,0.12549]
[1733395412315,20.0,237.74,237.68,0.12549]
[1733395413639,7.8611,237.81,237.68,0.25098]
[1733395414428,20.4762,237.81,237.67,27.977884]
[1733395415242,20.0,237.78,237.67,27.977884]
[1733395416113,20.0,237.78,237.64,4.201]
[1733395416314,14.1685,237.81,237.62,0.12549]
[1733395416315,20.0,237.74,237.66,4.201]
[1733395421141,6.3086,237.77,237.66,4.201]
[1733395421445,20.0,237.74,237.66,4.201]
[1733395422843,20.0,237.74,237.64,4.201]
[1733395423447,26.3094,237.74,237.64,4.201]
[1733395424240,26.3094,237.74,237.65,4.201]
[1733395424426,6.3085,237.78,237.67,4.201]
[1733395424626,20.0,237.75,237.69,4.201]
[1733395424829,6.3085,237.78,237.69,4.201]
[1733395426234,20.0,237.75,237.69,4.201]
[1733395427826,20.0,237.75,237.7,4.201]
[1733395428849,20.0,237.75,237.69,4.201]
[1733395429527,6.3085,237.78,237.69,4.201]
[1733395429861,20.0,237.75,237.68,0.12549]
[1733395430150,20.0,237.75,237.69,4.201]
[1733395431950,20.0,237.75,237.71,4.201]
[1733395432130,6.3085,237.78,237.71,4.201]
[1733395432737,20.0,237.79,237.71,4.201]
[1733395433649,20.0,237.77,237.71,4.201]
[1733395433849,20.0,237.77,237.68,24.027864]
[1733395434155,20.0,237.77,237.71,4.201]
[1733395435029,20.0,237.77,237.69,4.201]
[1733395435329,20.0,237.77,237.7,0.12549]
[1733395435527,20.0,237.77,237.71,4.201]
[1733395436450,20.0,237.77,237.69,4.201]
[1733395436829,20.0,237.77,237.7,0.12549]
[1733395437028,20.0,237.77,237.71,4.201]
[1733395437740,20.0,237.77,237.73,4.201]
[1733395438851,20.0,237.77,237.72,4.201]
[1733395440053,20.0,237.77,237.72,0.12549]
[1733395440726,20.0,237.77,237.71,27.977884]
[1733395441251,20.0,237.77,237.71,4.201]
[1733395441448,20.0,237.8,237.71,4.201]
[1733395441636,20.0,237.8,237.68,4.201]
[1733395442438,20.0,237.8,237.65,4.201]
[1733395442837,20.0,237.76,237.65,4.201]
[1733395445152,6.3091,237.75,237.65,4.201]
[1733395445355,20.0,237.72,237.65,4.201]
[1733395446747,1.69710259,237.78,237.66,0.12549]
[1733395446948,6.3083,237.79,237.69,4.201]
[1733395447854,6.3083,237.79,237.72,23.902374]
[1733395448150,6.3083,237.79,237.73,4.201]
[1733395450168,20.0,237.8,237.73,4.201]
[1733395455078,20.0,237.78,237.73,4.201]
[1733395462776,1.64320176,237.85,237.73,4.201]
[1733395462777,6.3067,237.85,237.76,32.05511754]
[1733395463083,1.5411,237.93,237.79,23.776884]
[1733395463791,1.5411,237.93,237.79,4.201]
[1733395464257,21.5411,237.93,237.79,4.201]
[1733395464455,20.0,237.86,237.79,4.201]
[1733395464964,6.3056,237.89,237.8,12.35374354]
[1733395465165,6.3056,237.89,237.81,4.201]
[1733395466962,6.3056,237.89,237.81,23.776884]
[1733395467267,6.3045,237.93,237.83,23.776884]
[1733395468182,25.2146,237.96,237.84,4.201]
[1733395468361,20.0,237.93,237.84,4.201]
[1733395468979,20.0,237.93,237.83,23.776884]
[1733395469379,26.3044,237.93,237.84,4.201]
[1733395473321,81.5,238.03,237.84,4.201]
[1733395473322,1.6469,238.07,237.93,0.12549]
[1733395473462,1.6469,238.07,238.0,8.15274354]
[1733395473789,13.0903034,238.14,238.0,8.15274354]
[1733395473790,6.2998,238.1,238.0,8.15274354]
[1733395474152,6.2998,238.1,237.99,4.201]
[1733395474752,20.0,238.07,237.99,4.201]
[1733395475793,20.0,238.07,238.0,4.201]
[1733395476863,20.0,238.07,237.98,4.201]
[1733395482456,20.0,238.07,237.99,4.32649]
[1733395483575,20.0,238.07,238.0,4.201]
[1733395483771,26.3007,238.07,238.0,4.201]
[1733395484583,26.3007,238.07,237.97,4.201]
[1733395485590,26.3007,238.07,237.98,0.12549]
[1733395487987,26.3007,238.07,237.97,4.201]
[1733395488195,26.3007,238.07,237.95,4.201]
[1733395488495,26.3007,238.07,237.96,0.12549]
[1733395492699,26.3007,238.07,237.96,0.25098]
[1733395493398,26.3007,238.07,237.97,4.201]
[1733395494502,26.3007,238.07,237.95,12.35374354]
[1733395495573,26.3007,238.07,237.97,4.201]
[1733395496097,26.3007,238.07,237.97,12.35374354]
[1733395498301,26.3007,238.07,237.99,4.201]
[1733395499299,26.3007,238.07,237.98,4.201]
[1733395500403,26.3007,238.07,237.97,4.201]
[1733395501513,26.3007,238.07,237.98,0.12549]
[1733395502208,26.3007,238.07,237.98,4.32649]
[1733395502702,20.0,238.07,237.99,0.25098]
[1733395503012,20.0,238.08,238.01,0.12549]
[1733395503682,20.0,238.08,238.01,0.37647]
[1733395503888,6.2997,238.11,238.02,12.35374354]
[1733395504103,6.2997,238.11,238.03,0.12549]
[1733395505582,6.2997,238.11,238.03,4.32649]
[1733395505892,6.2997,238.11,238.03,11.09157588]
[1733395506206,6.2997,238.11,238.03,4.32649]
[1733395506811,6.2997,238.11,238.0,4.201]
[1733395507515,6.2997,238.11,238.01,6.38931366]
[1733395507718,6.2997,238.11,238.02,4.201]
[1733395508012,6.2997,238.11,238.03,0.12549]
[1733395510487,6.2997,238.11,238.03,4.32649]
[1733395511520,6.2997,238.11,238.01,4.201]
[1733395511993,6.2997,238.11,238.02,0.37647]
[1733395512507,6.2997,238.11,238.03,4.201]
[1733395512822,20.0,238.11,238.03,9.76374477]
[1733395516803,0.4927034,238.14,238.07,4.201]
[1733395516987,0.4927034,238.14,238.12,8.15274354]
[1733395517187,0.4927034,238.14,238.13,4.201]
[1733395517582,0.4927034,238.14,238.13,4.32649]
[1733395518210,0.4927034,238.14,238.12,0.12549]
[1733395518387,0.4927034,238.14,238.13,4.45198]
[1733395519020,0.4927034,238.14,238.13,4.32649]
[1733395519516,0.4927034,238.14,238.13,4.45198]
[1733395520011,0.4927034,238.14,238.13,4.32649]
[1733395522518,0.4927034,238.14,238.13,4.57747]
[1733395523012,0.4927034,238.14,238.13,10.75273143]
[1733395524522,0.4927034,238.14,238.13,4.57747]
[1733395525203,0.4927034,238.14,238.13,4.32649]
[1733395525394,0.4927034,238.14,238.13,4.201]
[1733395527627,0.4927034,238.14,238.13,4.32649]
[1733395528129,0.4927034,238.14,238.13,4.201]
[1733395534428,0.4927034,238.14,238.11,4.201]
[1733395543039,0.4927034,238.14,238.12,23.776884]
[1733395543225,0.4927034,238.14,238.13,36.13062754]
[1733395543425,0.4927034,238.14,238.13,42.64128527]
[1733395545918,0.4927034,238.14,238.13,34.48854173]
[1733395546118,0.4927034,238.14,238.13,42.64128527]
[1733395551757,0.4927034,238.14,238.13,132.94128527]
[1733395551948,20.0,238.31,238.24,23.776884]
[1733395552243,1.6044,238.32,238.26,23.776884]
[1733395552427,1.6044,238.32,238.26,6.23486551]
[1733395552757,1.6044,238.32,238.27,23.776884]
[1733395553230,1.6044,238.32,238.26,6.23486551]
[1733395553431,1.6044,238.32,238.27,0.12549]
[1733395557647,1.6044,238.32,238.25,0.12549]
[1733395557820,26.2943,238.31,238.18,6.23486551]
[1733395558019,26.2943,238.31,238.2,8.15274354]
[1733395559347,26.2943,238.31,238.21,4.201]
[1733395559920,26.2943,238.31,238.23,4.32649]
[1733395560250,26.2943,238.31,238.23,10.07373995]
[1733395560442,1.6372,238.43,238.29,8.15274354]
[1733395560625,1.6372,238.43,238.3,6.00724995]
[1733395561041,1.6372,238.43,238.31,0.12549]
[1733395561243,1.6372,238.43,238.31,6.00724995]
[1733395561444,6.2921,238.4,238.32,4.201]
[1733395561754,6.2921,238.4,238.33,8.15274354]
[1733395562056,1.6372,238.43,238.35,8.15274354]
[1733395562354,1.6372,238.43,238.36,6.00724995]
[1733395562559,1.6372,238.43,238.36,10.20824995]
[1733395562740,1.6372,238.43,238.36,33.98513395]
[1733395562942,1.6372,238.43,238.36,29.78413395]
[1733395563453,1.6372,238.43,238.36,27.977884]
[1733395563662,1.6372,238.43,238.35,8.15274354]
[1733395564046,1.6372,238.43,238.35,14.15999349]
[1733395564243,1.6372,238.43,238.36,6.00724995]
[1733395564452,1.6372,238.43,238.34,4.201]
[1733395564641,6.2917,238.41,238.29,8.15274354]
[1733395565435,6.2926,238.38,238.23,4.201]
[1733395565765,6.5856,238.36,238.28,4.201]
[1733395565934,6.5856,238.36,238.27,8.15274354]
[1733395566134,12.8786,238.36,238.27,8.15274354]
[1733395566541,12.8786,238.36,238.28,4.201]
[1733395566866,1.6195,238.35,238.26,4.201]
[1733395568564,1.6195,238.35,238.27,0.12549]
[1733395568762,6.2935,238.34,238.23,5.40852773]
[1733395568985,6.2935,238.34,238.24,4.201]
[1733395570839,6.2935,238.34,238.23,4.201]
[1733395572445,6.2935,238.34,238.24,0.12549]
[1733395572963,6.2935,238.34,238.24,4.201]
[1733395573464,26.2945,238.31,238.24,4.201]
[1733395573664,7.9129,238.35,238.27,0.12549]
[1733395573871,20.0,238.32,238.27,0.12549]
[1733395574555,7.9129,238.35,238.27,0.12549]
[1733395576173,7.9129,238.35,238.27,4.201]
[1733395576373,20.0,238.32,238.27,4.201]
[1733395576675,7.9129,238.35,238.22,4.201]
[1733395576676,20.0,238.28,238.22,4.201]
[1733395577475,20.0,238.28,238.18,4.201]
[1733395577651,26.2952,238.28,238.18,4.201]
[1733395577974,26.2952,238.28,238.2,4.201]
[1733395580361,26.2952,238.28,238.21,4.201]
[1733395581277,26.2952,238.28,238.18,4.201]
[1733395581664,26.2952,238.28,238.2,4.201]
[1733395582758,7.8611,238.31,238.22,4.201]
[1733395582952,7.8611,238.31,238.24,4.201]
[1733395584953,7.8611,238.31,238.22,4.201]
[1733395585178,20.0,238.27,238.22,4.201]
[1733395585869,1.6547,238.26,238.22,4.201]
[1733395586052,1.6547,238.26,238.12,8.15274354]
[1733395586391,20.0,238.22,238.13,4.201]
[1733395588170,23.902374,238.35,238.15,4.201]
[1733395588367,0.12549,238.44,238.15,4.201]
[1733395588571,23.902374,238.42,238.15,4.201]
[1733395588960,23.902374,238.4,238.15,4.201]
[1733395589161,23.902374,238.38,238.09,139.901]
[1733395589360,23.902374,238.38,238.15,4.201]
[1733395590262,23.902374,238.34,238.15,4.201]
[1733395590464,42.782874,238.34,238.15,4.201]
[1733395590779,20.0,238.31,238.15,4.201]
[1733395590964,20.0,238.31,238.15,9.99014953]
[1733395591175,7.7139,238.3,238.15,9.99014953]
[1733395591373,20.0,238.27,238.15,9.99014953]
[1733395591682,20.0,238.27,238.12,8.15274354]
[1733395591683,20.0,238.27,238.17,4.201]
[1733395592090,20.0,238.23,238.17,4.201]
[1733395593663,6.2967,238.22,238.11,4.201]
[1733395593861,6.2967,238.22,238.1,23.776884]
[1733395593862,6.2967,238.22,238.13,4.201]
[1733395595789,6.2967,238.22,238.13,4.201]
[1733395595983,6.2967,238.22,238.11,4.201]
[1733395596188,6.2967,238.22,238.13,4.201]
[1733395598286,6.2967,238.22,238.11,4.201]
[1733395598799,20.0,238.19,238.11,4.201]
[1733395599601,20.0,238.2,238.12,4.201]
[1733395599812,6.2857,238.21,238.12,4.201]
[1733395600503,20.0,238.18,238.06,4.201]
[1733395600699,5.2483,238.17,238.06,4.201]
[1733395600904,5.2483,238.17,238.08,4.201]
[1733395601983,5.2483,238.17,238.06,4.201]
[1733395604405,5.2483,238.17,238.03,20.0]
[1733395604610,5.2483,238.17,238.02,12.1330804]
[1733395605796,5.2483,238.17,238.04,4.201]
[1733395606512,15.745,238.17,238.04,4.201]
[1733395606695,15.745,238.17,238.03,4.201]
[1733395607001,5.2483,238.17,238.06,7.9320804]
[1733395607202,5.2483,238.17,238.08,7.9320804]
[1733395607981,5.2483,238.17,238.09,4.201]
[1733395609323,5.2475,238.21,238.1,13.17156523]
[1733395609610,6.4916,238.27,238.15,7.9320804]
[1733395609794,6.4916,238.27,238.15,13.72045412]
[1733395610124,6.4916,238.27,238.15,5.78837372]
[1733395610496,5.2466,238.25,238.16,4.201]
[1733395610698,5.2466,238.25,238.16,9.98937372]
[1733395612504,5.2466,238.25,238.16,5.78837372]
[1733395613626,5.2466,238.25,238.16,9.98937372]
[1733395614392,5.2466,238.25,238.11,135.7]
[1733395614393,5.2466,238.25,238.13,7.9320804]
[1733395614918,5.2466,238.25,238.13,12.1330804]
[1733395615389,5.2466,238.25,238.11,135.7]
[1733395615591,5.2466,238.25,238.12,7.9320804]
[1733395615914,5.2466,238.25,238.13,4.201]
[1733395616115,5.2466,238.25,238.14,0.12549]
[1733395617913,5.2466,238.25,238.13,4.201]
[1733395617914,6.0141,238.24,238.12,4.201]
[1733395618302,6.0141,238.24,238.09,24.027864]
[1733395618612,6.0141,238.24,238.05,137.2619]
[1733395618816,5.2476,238.2,238.07,4.201]
[1733395619003,5.2476,238.2,238.09,4.201]
[1733395619425,1.9731,238.19,238.09,4.201]
[1733395619595,1.9731,238.19,238.05,1.5619]
[1733395619994,1.9731,238.19,238.06,4.201]
[1733395620602,5.2481,238.18,238.04,4.201]
[1733395621793,20.0,238.15,238.02,0.25098]
[1733395622295,5.249,238.14,238.03,4.201]
[1733395622796,5.249,238.14,238.03,24.201]
[1733395623421,29.788884,238.17,238.04,4.201]
[1733395623621,23.776884,238.13,238.04,4.201]
[1733395624420,23.776884,238.13,237.98,4.201]
[1733395624623,23.776884,238.11,238.01,4.201]
[1733395624794,20.0,238.08,238.01,4.201]
[1733395625709,20.0,238.08,237.95,4.201]
[1733395626100,20.0,238.08,237.96,0.12549]
[1733395626416,5.2503,238.09,237.97,4.201]
[1733395626622,5.2503,238.09,237.98,0.12549]
[1733395626925,5.2503,238.09,237.99,4.201]
[1733395627230,5.2503,238.09,238.01,4.201]
[1733395628295,5.2503,238.09,238.02,4.201]
[1733395629324,5.2503,238.09,237.99,4.201]
[1733395629528,5.2503,238.09,238.01,4.201]
[1733395630620,5.2503,238.09,238.02,4.201]
[1733395631817,20.0,238.11,238.04,4.201]
[1733395632328,5.2496,238.11,238.04,4.201]
[1733395632702,20.0,238.08,237.97,4.201]
[1733395633928,25.2503,238.08,237.97,4.201]
[1733395634304,6.3616,238.07,237.92,4.201]
[1733395634503,20.0,238.04,237.92,4.201]
[1733395635225,20.0,238.04,237.94,4.201]
[1733395635715,20.0,238.04,237.96,4.32649]
[1733395635911,5.2511,238.05,237.96,4.201]
[1733395636107,20.0,238.02,237.96,4.201]
[1733395636808,20.0,238.02,237.97,4.201]
[1733395637936,20.0,238.02,237.91,4.201]
[1733395637937,5.2517,238.02,237.91,4.201]
[1733395638305,20.0,237.99,237.91,4.201]
[1733395639134,20.0,237.99,237.85,135.7]
[1733395639311,6.4061,237.98,237.82,1.9964]
[1733395639514,20.0,237.95,237.82,1.9964]
[1733395639713,25.2532,237.95,237.82,1.9964]
[1733395640730,25.2532,237.95,237.83,23.776884]
[1733395640931,1.9755,237.94,237.82,23.776884]
[1733395641238,1.9755,237.94,237.79,141.7912]
[1733395642007,1.9755,237.94,237.8,0.12549]
[1733395642543,5.2536,237.93,237.8,23.902374]
[1733395643822,1.9755,237.94,237.81,0.12549]
[1733395644023,21.9755,237.94,237.81,0.12549]
[1733395644226,1.9755,237.94,237.81,0.12549]
[1733395644412,1.9755,237.94,237.82,0.25098]
[1733395644737,1.9755,237.94,237.82,0.12549]
[1733395645412,7.2289,237.94,237.81,0.25098]
[1733395647842,7.2289,237.94,237.8,159.476884]
[1733395648143,7.2289,237.94,237.8,135.7]
[1733395648744,7.2289,237.94,237.8,0.25098]
[1733395649239,7.2289,237.94,237.81,4.201]
[1733395649632,7.2289,237.94,237.83,4.201]
[1733395650525,7.2289,237.94,237.81,4.201]
[1733395651137,20.0,237.91,237.81,4.201]
[1733395651445,25.2541,237.91,237.81,4.201]
[1733395651624,6.1991,237.9,237.82,4.201]
[1733395652612,6.1991,237.9,237.8,0.25098]
[1733395653025,6.1991,237.9,237.81,4.32649]
[1733395653233,6.1991,237.9,237.83,4.201]
[1733395654331,20.0,237.87,237.78,0.4927034]
[1733395654640,20.0,237.87,237.79,0.12549]
[1733395655943,20.0,237.87,237.78,0.4927034]
[1733395656628,5.2551,237.86,237.78,0.4927034]
[1733395657532,20.0,237.87,237.78,0.4927034]
[1733395658420,20.0,237.87,237.79,0.12549]
[1733395658624,20.0,237.87,237.8,4.201]
[1733395659544,20.0,237.87,237.78,0.4927034]
[1733395660644,20.0,237.87,237.79,0.12549]
[1733395661326,20.0,237.87,237.8,4.201]
[1733395662347,11.4535,237.9,237.79,0.12549]
[1733395662645,6.1991,237.9,237.82,4.201]
[1733395662848,7.2289,237.94,237.82,4.32649]
[1733395663040,7.2289,237.94,237.84,4.201]
[1733395663938,1.9755,237.94,237.88,4.201]
[1733395664147,5.2527,237.98,237.89,0.12549]
[1733395664331,1.9915,238.0,237.9,4.201]
[1733395664537,1.9915,238.0,237.93,0.12549]
[1733395664739,1.9915,238.0,237.92,4.201]
[1733395665626,7.2436,238.0,237.93,4.201]
[1733395666758,7.2436,238.0,237.86,20.0]
[1733395666759,7.2436,238.0,237.89,4.201]
[1733395667829,20.0,237.97,237.9,4.201]
[1733395668426,20.0,237.93,237.9,4.201]
[1733395668835,20.0,237.93,237.79,0.25098]
[1733395669272,20.0,237.93,237.78,4.6937034]
[1733395669560,20.0,237.89,237.78,4.6937034]
[1733395669950,20.0,237.89,237.78,0.4927034]
[1733395670453,5.2544,237.9,237.78,0.4927034]
[1733395670845,20.0,237.87,237.78,0.4927034]
[1733395671458,5.2544,237.9,237.79,0.12549]
[1733395671653,8.2501,237.92,237.79,4.57747]
[1733395672264,8.2501,237.92,237.81,4.201]
[1733395672562,8.2501,237.92,237.83,4.201]
[1733395674668,8.2501,237.92,237.84,4.201]
[1733395674877,1.9915,237.92,237.86,4.201]
[1733395675973,1.9915,237.92,237.85,4.201]
[1733395676869,6.2665,237.97,237.87,0.25098]
[1733395679678,6.2665,237.97,237.88,0.12549]
[1733395682673,11.5392,238.03,237.9,4.201]
[1733395682877,11.5392,238.03,237.93,0.12549]
[1733395683670,11.5392,238.03,237.93,24.153354]
[1733395683870,11.5392,238.03,237.96,4.201]
[1733395684271,11.5392,238.03,237.96,10.04894941]
[1733395684654,11.5392,238.03,237.97,10.04894941]
[1733395685874,1.8936,238.04,237.97,10.04894941]
[1733395686085,6.2876,238.09,238.02,4.201]
[1733395686379,6.2876,238.09,238.03,10.30172719]
[1733395687278,1.8936,238.12,238.03,10.30172719]
[1733395687584,1.8936,238.12,238.04,28.103374]
[1733395688289,1.8936,238.12,238.04,33.64453064]
[1733395688464,11.5072,238.15,238.04,33.64453064]
[1733395688775,11.5072,238.15,238.06,4.201]
[1733395688981,1.8304,238.18,238.08,4.32649]
[1733395689353,1.8304,238.18,238.08,9.86764664]
[1733395689553,1.8304,238.18,238.08,4.32649]
[1733395690765,1.8304,238.18,238.08,9.86764664]
[1733395691565,5.2479,238.19,238.09,23.776884]
[1733395691758,5.2479,238.19,238.1,4.201]
[1733395691965,5.2479,238.19,238.11,0.12549]
[1733395693364,5.2479,238.19,238.0,135.7]
[1733395693767,5.2479,238.19,238.05,24.027864]
[1733395694984,20.0,238.16,238.05,24.027864]
[1733395695772,20.0,238.17,237.98,4.201]
[1733395695971,1.8906,238.16,237.98,4.201]
[1733395697062,20.0,238.12,237.98,4.201]
[1733395698174,20.0,238.08,237.92,139.901]
[1733395698388,20.0,238.08,237.96,4.201]
[1733395698771,20.0,238.08,237.99,23.902374]
[1733395698975,20.0,238.08,238.0,4.201]
[1733395699981,20.0,238.08,238.01,0.12549]
[1733395701165,5.2496,238.11,238.01,4.201]
[1733395701591,5.2496,238.11,238.03,4.201]
[1733395702775,20.0,238.12,238.0,4.32649]
[1733395703161,20.0,238.12,238.02,4.201]
[1733395703787,5.2496,238.11,238.02,4.201]
[1733395704177,5.2496,238.11,237.99,0.25098]
[1733395704380,5.2496,238.11,238.0,4.201]
[1733395704888,5.2496,238.11,238.02,4.201]
[1733395705971,5.2496,238.11,238.0,4.201]
[1733395706194,5.2496,238.11,238.01,0.12549]
[1733395706690,5.2496,238.11,238.02,4.201]
[1733395707800,5.2496,238.11,238.0,4.201]
[1733395707990,5.2496,238.11,238.01,0.12549]
[1733395708189,5.2496,238.11,238.02,4.201]
[1733395709497,5.2496,238.11,238.0,4.201]
[1733395711198,5.2496,238.11,238.02,4.201]
[1733395711401,10.498,238.15,238.02,4.201]
[1733395711402,5.2501,238.09,238.02,4.201]
[1733395711584,1.9969,238.08,238.02,4.201]
[1733395712288,1.9969,238.08,237.97,0.25098]
[1733395712702,1.9969,238.08,238.0,4.201]
[1733395712901,1.9969,238.08,238.01,27.977884]
[1733395713101,6.472,238.1,238.01,4.201]
[1733395713300,11.7219,238.1,238.03,4.201]
[1733395714385,11.7219,238.1,238.0,4.201]
[1733395715294,11.7219,238.1,238.02,4.201]
[1733395716304,11.7219,238.1,238.0,4.201]
[1733395716899,11.7219,238.1,238.02,4.201]
[1733395717786,11.7219,238.1,238.04,4.201]
[1733395717982,1.9049,238.13,237.98,4.44398]
[1733395718184,1.9049,238.13,238.01,4.44398]
[1733395718703,1.9049,238.13,238.03,4.193]
[1733395719116,25.2494,238.12,238.05,4.193]
[1733395719690,25.2494,238.12,238.01,0.25098]
[1733395719691,25.2494,238.12,238.07,4.193]
[1733395719890,5.2494,238.12,238.07,4.193]
[1733395720815,5.2494,238.12,238.02,4.193]
[1733395721119,5.2494,238.12,238.04,4.193]
[1733395722021,5.2494,238.12,238.0,4.193]
[1733395722318,5.2494,238.12,238.04,4.193]
[1733395723423,5.2494,238.12,238.02,4.193]
[1733395724919,5.2494,238.12,238.0,4.193]
[1733395725220,5.2494,238.12,238.02,4.193]
[1733395725392,5.2494,238.12,238.04,4.193]
[1733395725805,5.2494,238.12,238.02,4.193]
[1733395726216,1.9049,238.13,238.04,4.193]
[1733395726401,1.9049,238.13,238.08,4.193]
[1733395727122,5.2494,238.12,238.05,4.193]
[1733395728220,5.2494,238.12,238.03,4.193]
[1733395728418,5.2494,238.12,238.01,4.193]
[1733395728799,20.0,238.09,238.01,4.193]
[1733395729314,20.0,238.09,237.96,0.12549]
[1733395729513,20.0,238.09,237.96,0.25098]
[1733395729713,5.2503,238.08,237.98,0.25098]
[1733395730029,1.9049,238.13,238.01,4.193]
[1733395730325,20.0,238.12,238.01,4.193]
[1733395730922,20.0,238.12,238.03,4.193]
[1733395731424,25.2496,238.12,238.03,4.193]
[1733395731723,25.2496,238.12,237.99,4.193]
[1733395732718,25.2496,238.12,238.01,4.193]
[1733395733816,25.2496,238.12,238.03,4.193]
[1733395734020,25.2496,238.12,238.0,0.25098]
[1733395734332,25.2496,238.12,238.0,24.027864]
[1733395735223,25.2496,238.12,238.0,28.220864]
[1733395737028,25.2496,238.12,238.01,0.12549]
[1733395738120,25.2496,238.12,237.98,4.193]
[1733395739308,25.2496,238.12,238.0,0.12549]
[1733395740619,20.0,238.12,238.02,0.25098]
[1733395740926,1.9049,238.13,238.01,23.776884]
[1733395741124,5.2494,238.12,238.01,23.776884]
[1733395742129,20.0,238.09,237.93,139.893]
[1733395742328,20.0,238.09,237.95,4.193]
[1733395742834,5.2503,238.08,237.97,4.193]
[1733395743313,5.2503,238.08,237.98,23.776884]
[1733395744032,5.2503,238.08,237.99,4.193]
[1733395744934,20.0,238.05,237.99,4.193]
[1733395745224,1.8407,238.04,237.92,4.193]
[1733395745429,1.8407,238.04,237.93,0.25098]
[1733395746526,1.8407,238.04,237.96,4.193]
[1733395746732,21.8407,238.04,237.96,4.193]
[1733395747033,5.2514,238.03,237.96,4.193]
[1733395747740,20.0,238.0,237.85,139.893]
[1733395747908,20.0,238.0,237.86,0.25098]
[1733395748111,6.0424,237.99,237.86,0.25098]
[1733395749133,1.9886,237.98,237.88,0.25098]
[1733395749339,1.9886,237.98,237.89,4.193]
[1733395750328,5.2527,237.97,237.84,4.193]
[1733395751730,5.2527,237.97,237.88,4.193]
[1733395752711,5.2527,237.97,237.86,4.193]
[1733395752923,5.2527,237.97,237.88,4.193]
[1733395755040,5.2527,237.97,237.86,4.193]
[1733395755203,5.2527,237.97,237.88,4.193]
[1733395756806,1.9886,237.98,237.91,0.12549]
[1733395757217,1.9886,237.98,237.91,4.193]
[1733395757823,1.9886,237.98,237.89,0.25098]
[1733395757824,1.9886,237.98,237.93,4.193]
[1733395758812,1.9886,237.98,237.91,4.193]